bitfinex/quotes_SOLUSD_20241202
["timestamp","ask_amount","ask_price","bid_price","bid_amount"]
[1733119085213,10.47939372,228.9,228.83,10.47939372]
[1733119087297,10.47939372,228.91,228.83,10.47939372]
[1733119087721,10.47939372,228.9,228.83,10.47939372]
[1733119087899,10.47939372,228.89,228.82,20.0]
[1733119088095,10.47939372,228.89,228.82,30.47939372]
[1733119088414,10.47939372,228.9,228.83,23.776884]
[1733119089398,16.5742,228.96,228.83,34.25627772]
[1733119089600,10.47939372,228.9,228.83,34.25627772]
[1733119089919,10.47939372,228.93,228.86,10.47939372]
[1733119090100,10.47939372,228.92,228.86,10.47939372]
[1733119090297,10.47939372,228.92,228.86,23.776884]
[1733119090693,10.47939372,228.92,228.85,10.47939372]
[1733119090694,10.47939372,228.91,228.85,23.776884]
[1733119096225,16.5742,228.96,228.85,23.776884]
[1733119096828,16.5742,228.96,228.84,23.776884]
[1733119097426,16.5742,228.96,228.85,10.49092273]
[1733119097926,16.5742,228.96,228.86,23.776884]
[1733119099614,16.5742,228.96,228.84,23.776884]
[1733119099813,16.5742,228.96,228.83,26.22]
[1733119100018,16.5742,228.96,228.81,30.49092273]
[1733119102630,16.5742,228.96,228.82,10.49092273]
[1733119103620,16.5742,228.96,228.83,10.49092273]
[1733119103933,16.5742,228.96,228.84,23.776884]
[1733119104231,16.5742,228.96,228.82,60.48780673]
[1733119104404,16.5742,228.96,228.83,10.49092273]
[1733119104602,16.5742,228.96,228.84,23.776884]
[1733119104828,11.137356,228.96,228.84,23.776884]
[1733119106425,11.137356,228.96,228.84,10.49092273]
[1733119106907,11.137356,228.96,228.86,10.49092273]
[1733119108114,11.137356,228.96,228.85,10.49092273]
[1733119110627,11.137356,228.96,228.84,10.49092273]
[1733119111740,11.137356,228.96,228.85,10.49092273]
[1733119112225,11.137356,228.96,228.84,10.49092273]
[1733119112535,11.137356,228.96,228.85,26.22]
[1733119113644,11.137356,228.96,228.84,26.22]
[1733119114636,11.137356,228.96,228.82,23.776884]
[1733119114840,11.137356,228.96,228.82,34.26780673]
[1733119117044,11.137356,228.96,228.82,10.49092273]
[1733119117349,11.137356,228.96,228.81,20.0]
[1733119117517,11.137356,228.96,228.81,30.49092273]
[1733119117945,23.776884,228.95,228.79,20.0]
[1733119118252,23.776884,228.95,228.79,30.49092273]
[1733119119027,20.0,228.91,228.74,26.22]
[1733119119227,20.0,228.91,228.77,10.49092273]
[1733119119456,24.02,228.85,228.77,10.49092273]
[1733119120738,24.02,228.85,228.77,20.0]
[1733119122146,24.02,228.85,228.77,30.49092273]
[1733119125554,24.02,228.85,228.77,20.0]
[1733119125727,24.02,228.85,228.75,10.49092273]
[1733119126142,24.02,228.85,228.75,20.0]
[1733119126348,24.02,228.85,228.75,30.49092273]
[1733119126551,24.02,228.85,228.75,20.0]
[1733119126744,24.02,228.85,228.75,10.49092273]
[1733119135544,24.02,228.85,228.73,20.0]
[1733119135744,24.02,228.85,228.74,10.49092273]
[1733119136664,21.5186,228.86,228.71,20.0]
[1733119136967,21.5186,228.86,228.73,30.49092273]
[1733119137265,21.5186,228.86,228.73,10.49092273]
[1733119137967,21.5186,228.86,228.72,10.49092273]
[1733119138355,23.776884,228.85,228.69,23.776884]
[1733119138666,23.776884,228.85,228.71,10.49092273]
[1733119139160,23.776884,228.85,228.69,49.996884]
[1733119139374,23.776884,228.85,228.72,10.49092273]
[1733119140657,20.0,228.82,228.71,10.49092273]
[1733119143671,20.0,228.82,228.72,10.49092273]
[1733119143960,20.0,228.82,228.71,10.49092273]
[1733119145469,22.1589,228.81,228.66,27.09205984]
[1733119145665,23.776884,228.8,228.66,26.22]
[1733119145963,23.776884,228.8,228.69,10.49092273]
[1733119146172,22.1589,228.81,228.69,10.49092273]
[1733119148369,23.776884,228.8,228.7,10.49092273]
[1733119149663,22.1589,228.81,228.72,10.49092273]
[1733119149874,22.1589,228.81,228.75,10.49092273]
[1733119150451,22.1589,228.81,228.74,10.49092273]
[1733119150973,20.0,228.78,228.64,26.22]
[1733119151156,20.0,228.78,228.67,10.49092273]
[1733119151954,20.0,228.78,228.68,10.49092273]
[1733119152154,20.0,228.78,228.69,10.49092273]
[1733119152966,20.0,228.78,228.7,10.49092273]
[1733119153665,20.0,228.78,228.71,10.49092273]
[1733119153978,22.1589,228.81,228.71,10.49092273]
[1733119154572,24.02,228.77,228.71,10.49092273]
[1733119155566,24.02,228.77,228.7,10.49092273]
[1733119156781,24.02,228.77,228.66,0.87212794]
[1733119157080,24.02,228.77,228.7,10.49092273]
[1733119157689,24.02,228.77,228.71,10.49092273]
[1733119158262,22.1589,228.81,228.71,10.49092273]
[1733119158892,24.02,228.76,228.71,10.49092273]
[1733119159384,22.1589,228.81,228.77,145.775725]
[1733119161687,23.776884,228.8,228.77,145.775725]
[1733119163470,23.776884,228.8,228.69,10.49092273]
[1733119163991,23.776884,228.8,228.66,20.0]
[1733119164374,23.776884,228.8,228.7,10.49092273]
[1733119164866,22.1589,228.81,228.7,10.49092273]
[1733119165069,22.1589,228.81,228.72,10.49092273]
[1733119170373,6.2518,228.86,228.76,10.49092273]
[1733119170707,6.2518,228.86,228.77,10.49092273]
[1733119171513,6.2518,228.86,228.8,10.49092273]
[1733119175404,15.7238,228.87,228.8,10.49092273]
[1733119176504,15.7238,228.87,228.85,145.725815]
[1733119182801,20.0,228.89,228.85,145.725815]
[1733119183186,20.0,228.88,228.85,145.725815]
[1733119189014,23.776884,228.87,228.85,145.725815]
[1733119193241,20.0,228.84,228.77,10.49092273]
[1733119196373,20.0,228.84,228.73,0.87193535]
[1733119196650,20.0,228.84,228.76,10.49092273]
[1733119196945,20.0,228.84,228.75,10.49092273]
[1733119197741,20.0,228.84,228.75,36.71092273]
[1733119197939,20.0,228.84,228.72,26.22]
[1733119198119,20.0,228.84,228.75,10.49092273]
[1733119198917,20.0,228.89,228.77,10.49092273]
[1733119199941,20.0,228.89,228.76,10.49092273]
[1733119200844,23.776884,228.91,228.8,5.0]
[1733119201031,20.0,228.88,228.8,5.0]
[1733119201236,23.776884,228.87,228.8,5.0]
[1733119202050,23.776884,228.87,228.79,5.0]
[1733119202770,23.776884,228.87,228.8,5.0]
[1733119203139,23.776884,228.87,228.79,5.0]
[1733119206637,20.0,228.8,228.73,5.0]
[1733119207472,23.776884,228.79,228.71,5.0]
[1733119207850,23.776884,228.79,228.69,20.3073]
[1733119208453,23.776884,228.79,228.69,5.0]
[1733119208963,23.776884,228.79,228.7,5.0]
[1733119210042,23.776884,228.79,228.73,5.0]
[1733119210869,20.0,228.79,228.73,5.0]
[1733119212155,20.0,228.79,228.75,5.0]
[1733119212356,20.0,228.85,228.76,5.0]
[1733119214359,20.0,228.85,228.78,5.0]
[1733119215644,20.0,228.85,228.75,10.0]
[1733119215847,20.0,228.85,228.73,10.0]
[1733119216043,20.0,228.85,228.73,5.0]
[1733119217075,20.0,228.85,228.73,10.0]
[1733119219070,20.0,228.85,228.73,5.0]
[1733119219386,20.0,228.85,228.72,16.2188]
[1733119219562,20.0,228.85,228.69,5.0]
[1733119220681,20.0,228.8,228.66,5.0]
[1733119221062,20.0,228.8,228.65,20.6131]
[1733119222773,20.0,228.8,228.67,5.0]
[1733119223375,20.0,228.8,228.68,5.0]
[1733119224884,20.0,228.8,228.7,5.0]
[1733119225274,2.27168901,228.82,228.72,5.0]
[1733119225480,6.3934,228.83,228.72,10.0]
[1733119226162,6.3934,228.83,228.7,10.0]
[1733119226770,20.0,228.8,228.7,10.0]
[1733119227196,20.0,228.8,228.7,5.0]
[1733119228094,20.0,228.8,228.7,10.0]
[1733119228270,20.0,228.8,228.72,5.0]
[1733119228465,20.0,228.8,228.73,5.0]
[1733119229502,20.0,228.8,228.7,10.0]
[1733119229667,20.0,228.8,228.7,5.0]
[1733119229997,20.0,228.8,228.72,5.0]
[1733119231285,20.0,228.8,228.72,10.0]
[1733119231694,20.0,228.8,228.74,5.0]
[1733119232798,20.0,228.8,228.74,10.0]
[1733119232999,20.0,228.81,228.74,10.0]
[1733119234311,20.0,228.81,228.74,5.0]
[1733119235585,15.2608,228.76,228.7,10.0]
[1733119235793,20.0,228.77,228.7,10.0]
[1733119236110,20.0,228.77,228.7,5.0]
[1733119236505,20.0,228.77,228.68,10.0]
[1733119236800,20.0,228.77,228.7,5.0]
[1733119237191,20.0,228.77,228.68,10.0]
[1733119237387,20.0,228.77,228.7,5.0]
[1733119240985,20.0,228.77,228.67,5.0]
[1733119241186,20.0,228.77,228.69,5.0]
[1733119242115,20.0,228.77,228.67,5.0]
[1733119242508,20.0,228.77,228.69,5.0]
[1733119243109,20.0,228.77,228.67,5.0]
[1733119244293,20.0,228.77,228.65,5.0]
[1733119246194,20.0,228.73,228.65,5.0]
[1733119251410,26.5141,228.73,228.63,5.0]
[1733119252415,26.5141,228.73,228.65,5.0]
[1733119253122,26.5141,228.73,228.63,5.0]
[1733119254491,26.5141,228.73,228.61,5.0]
[1733119257626,26.5141,228.73,228.63,5.0]
[1733119258320,26.5141,228.73,228.59,15.49092273]
[1733119258522,26.5141,228.73,228.63,10.0]
[1733119259496,26.5141,228.73,228.65,5.0]
[1733119259700,16.1836,228.76,228.68,5.0]
[1733119260201,8.64540233,228.8,228.72,5.0]
[1733119260401,6.3309,228.8,228.72,5.0]
[1733119262424,20.0,228.77,228.72,5.0]
[1733119263123,20.0,228.77,228.71,5.0]
[1733119265329,20.0,228.77,228.69,5.0]
[1733119265512,20.0,228.77,228.67,5.0]
[1733119265910,20.0,228.77,228.65,5.0]
[1733119266507,20.0,228.77,228.63,5.0]
[1733119267604,20.0,228.73,228.61,10.0]
[1733119268326,6.0929,228.72,228.61,10.0]
[1733119268833,20.0,228.69,228.61,10.0]
[1733119270824,23.776884,228.64,228.54,5.0]
[1733119271027,20.0,228.61,228.53,5.0]
[1733119271326,20.0,228.61,228.54,5.0]
[1733119271538,20.0,228.61,228.53,5.0]
[1733119273140,20.0,228.61,228.55,5.0]
[1733119273327,20.0,228.61,228.55,10.0]
[1733119273505,20.0,228.61,228.55,20.49092273]
[1733119273932,20.0,228.65,228.53,5.0]
[1733119274138,20.0,228.65,228.54,5.0]
[1733119274641,22.30911913,228.65,228.54,5.0]
[1733119275533,20.0,228.65,228.54,5.0]
[1733119278618,20.0,228.65,228.54,20.49092273]
[1733119278820,20.0,228.65,228.56,5.0]
[1733119280039,20.0,228.61,228.52,5.0]
[1733119280223,20.0,228.57,228.49,5.0]
[1733119281045,20.0,228.57,228.5,5.0]
[1733119282733,16.1969,228.6,228.52,10.0]
[1733119282929,16.1969,228.6,228.52,20.49092273]
[1733119283338,6.4757,228.64,228.53,10.49092273]
[1733119283543,6.4757,228.64,228.56,5.0]
[1733119284553,6.4757,228.64,228.54,20.49092273]
[1733119284720,20.0,228.61,228.56,5.0]
[1733119285558,20.0,228.61,228.56,10.0]
[1733119286650,0.08198028,228.57,228.56,33.776884]
[1733119286818,0.08198028,228.57,228.56,44.39329673]
[1733119287022,0.08198028,228.57,228.56,33.776884]
[1733119287224,0.08198028,228.57,228.56,44.26780673]
[1733119288625,0.08198028,228.57,228.56,44.39329673]
[1733119289258,0.08198028,228.57,228.56,33.776884]
[1733119289435,0.08198028,228.57,228.56,44.26780673]
[1733119289626,0.08198028,228.57,228.56,10.0]
[1733119289953,0.08198028,228.57,228.56,5.0]
[1733119291359,0.08198028,228.57,228.54,5.0]
[1733119291730,0.08198028,228.57,228.5,5.0]
[1733119291921,20.08198028,228.57,228.48,5.0]
[1733119292128,20.08198028,228.57,228.46,10.0]
[1733119292631,20.08198028,228.57,228.48,5.0]
[1733119293157,20.08198028,228.57,228.46,10.0]
[1733119294760,20.08198028,228.57,228.48,5.0]
[1733119295445,20.08198028,228.57,228.5,5.0]
[1733119295755,20.08198028,228.57,228.5,10.0]
[1733119297043,20.08198028,228.57,228.5,5.0]
[1733119298665,20.08198028,228.57,228.5,10.0]
[1733119299858,20.08198028,228.57,228.52,5.0]
[1733119300462,0.08198028,228.57,228.56,5.0]
[1733119300658,0.08198028,228.57,228.56,21.4503561]
[1733119301164,0.08198028,228.57,228.56,45.2272401]
[1733119301575,0.08198028,228.57,228.56,46.09995476]
[1733119302080,0.08198028,228.57,228.56,45.2272401]
[1733119302242,0.08198028,228.57,228.56,46.09996362]
[1733119304239,0.08198028,228.57,228.56,46.35094362]
[1733119306452,0.17606889,228.57,228.56,46.35094362]
[1733119307046,0.17606889,228.57,228.56,46.22545362]
[1733119307265,0.09408861,228.57,228.56,46.22545362]
[1733119307646,0.09408861,228.57,228.56,89.02129972]
[1733119307838,0.09408861,228.57,228.56,88.1485762]
[1733119308540,0.08557248,228.59,228.58,5.12549]
[1733119308746,0.08557248,228.59,228.58,67.80096843]
[1733119309005,0.08557248,228.59,228.58,51.35061233]
[1733119309354,0.08069281,228.6,228.59,24.027864]
[1733119309555,0.08069281,228.6,228.59,40.4782201]
[1733119309757,0.08069281,228.6,228.59,66.6982201]
[1733119310652,0.08069281,228.6,228.59,67.570503]
[1733119311875,0.08613709,228.61,228.59,73.57042175]
[1733119312077,15.4079,228.79,228.64,28.902374]
[1733119312257,15.4079,228.79,228.64,50.3527301]
[1733119313267,20.0,228.74,228.64,33.776884]
[1733119313745,20.0,228.74,228.64,10.0]
[1733119316576,15.4199,228.7,228.64,10.0]
[1733119317068,15.4199,228.7,228.64,5.0]
[1733119317272,20.0,228.67,228.64,5.0]
[1733119317577,20.0,228.67,228.62,5.0]
[1733119319174,20.0,228.67,228.6,5.0]
[1733119319373,20.08715927,228.65,228.58,5.0]
[1733119320591,20.08715927,228.65,228.56,5.0]
[1733119321279,16.1517,228.64,228.54,5.0]
[1733119321468,20.0,228.61,228.52,5.0]
[1733119321663,20.0,228.61,228.52,10.0]
[1733119321852,20.0,228.61,228.54,10.0]
[1733119322058,20.0,228.61,228.56,5.0]
[1733119322460,16.1517,228.64,228.6,5.0]
[1733119324860,20.08715927,228.65,228.6,10.0]
[1733119325455,0.08715927,228.65,228.62,10.0]
[1733119325656,0.08715927,228.65,228.64,5.0]
[1733119326389,0.08715927,228.65,228.62,5.0]
[1733119326683,20.08715927,228.65,228.6,5.0]
[1733119327356,20.0,228.65,228.6,5.0]
[1733119328255,20.0,228.65,228.61,5.0]
[1733119330579,20.0,228.65,228.61,10.0]
[1733119331283,15.5568,228.69,228.64,5.0]
[1733119332089,15.5568,228.69,228.64,10.0]
[1733119332559,15.5568,228.69,228.64,5.0]
[1733119333558,15.5568,228.69,228.64,10.0]
[1733119334075,6.1066,228.72,228.64,10.0]
[1733119334076,15.507,228.74,228.66,10.0]
[1733119334260,15.507,228.74,228.68,5.0]
[1733119334661,15.507,228.74,228.69,5.0]
[1733119335776,20.0,228.71,228.69,5.0]
[1733119336164,15.507,228.74,228.69,5.0]
[1733119337173,20.0,228.74,228.69,5.0]
[1733119337378,20.0,228.74,228.71,5.0]
[1733119337769,6.6329,228.77,228.71,10.0]
[1733119338068,16.1087,228.79,228.73,5.0]
[1733119339272,20.0,228.76,228.73,5.0]
[1733119339573,20.0,228.76,228.73,10.0]
[1733119339780,16.1087,228.79,228.7,7.6223561]
[1733119340292,6.5109,228.82,228.73,16.4503561]
[1733119340495,6.5109,228.82,228.71,23.902374]
[1733119340669,6.5109,228.82,228.72,16.4503561]
[1733119340979,16.0228,228.85,228.73,16.4503561]
[1733119341404,16.0228,228.85,228.7,16.4503561]
[1733119341699,6.0838,228.81,228.63,33.1134561]
[1733119341896,20.0,228.78,228.63,16.6631]
[1733119342071,20.0,228.74,228.63,16.6631]
[1733119342691,20.0,228.74,228.61,16.4503561]
[1733119343179,20.0,228.74,228.59,16.4503561]
[1733119343390,20.0,228.74,228.6,0.12549]
[1733119343666,20.0,228.74,228.59,16.4503561]
[1733119343867,20.0,228.74,228.58,16.4503561]
[1733119344108,26.5425,228.7,228.57,33.0706561]
[1733119344396,26.5425,228.7,228.58,16.4503561]
[1733119345474,26.5425,228.7,228.59,16.4503561]
[1733119345774,26.5425,228.7,228.58,16.4503561]
[1733119346704,26.5425,228.7,228.57,16.6203]
[1733119346999,26.5425,228.7,228.56,16.4503561]
[1733119347569,26.5425,228.7,228.57,16.4503561]
[1733119348376,26.5425,228.7,228.58,16.4503561]
[1733119348602,26.5425,228.7,228.62,16.4503561]
[1733119348776,26.5425,228.7,228.61,16.4503561]
[1733119348981,26.5425,228.7,228.6,16.4503561]
[1733119349381,26.5425,228.7,228.61,16.4503561]
[1733119349577,6.5425,228.7,228.62,16.4503561]
[1733119350310,6.5425,228.7,228.61,16.4503561]
[1733119350800,6.5425,228.7,228.62,16.4503561]
[1733119351008,20.0,228.73,228.64,16.4503561]
[1733119351197,20.0,228.73,228.63,16.4503561]
[1733119354205,20.0,228.73,228.62,16.4503561]
[1733119355405,20.0,228.73,228.61,16.4503561]
[1733119355594,20.0,228.73,228.61,10.51140373]
[1733119357414,20.0,228.73,228.59,0.12549]
[1733119357415,20.0,228.73,228.62,10.51140373]
[1733119361116,20.0,228.73,228.61,10.51140373]
[1733119362792,16.9794,228.72,228.58,23.776884]
[1733119362991,20.0,228.69,228.6,10.51140373]
[1733119363721,20.0,228.69,228.58,23.776884]
[1733119364106,20.0,228.69,228.57,10.51140373]
[1733119365815,20.0,228.69,228.53,0.87257409]
[1733119365994,20.0,228.65,228.51,15.9198]
[1733119366198,16.8235,228.64,228.52,10.51140373]
[1733119366399,16.8235,228.64,228.51,15.9198]
[1733119366593,16.8235,228.64,228.52,10.51140373]
[1733119367333,16.8235,228.64,228.53,10.51140373]
[1733119368730,20.0,228.61,228.46,6.1055]
[1733119369018,20.0,228.61,228.51,10.51140373]
[1733119370022,20.0,228.61,228.52,10.51140373]
[1733119371627,20.0,228.61,228.53,10.51140373]
[1733119371801,17.8,228.61,228.53,10.51140373]
[1733119372298,17.8,228.61,228.49,23.776884]
[1733119372504,17.8,228.61,228.53,10.51140373]
[1733119373510,16.8235,228.64,228.55,10.51140373]
[1733119373713,16.8235,228.64,228.5,0.12549]
[1733119373917,16.8235,228.64,228.55,10.51140373]
[1733119374117,16.8235,228.64,228.54,10.51140373]
[1733119374316,16.8235,228.64,228.55,10.51140373]
[1733119374614,20.0,228.65,228.59,10.51140373]
[1733119374803,6.0493,228.68,228.6,10.51140373]
[1733119376642,17.1021,228.69,228.63,10.51140373]
[1733119377035,6.6519,228.73,228.63,10.51140373]
[1733119377510,6.6519,228.73,228.64,10.51140373]
[1733119377709,6.6519,228.73,228.59,0.87238612]
[1733119377710,6.6519,228.73,228.65,10.51140373]
[1733119377938,6.6519,228.73,228.66,10.51140373]
[1733119379629,6.6519,228.73,228.66,16.41783527]
[1733119379820,17.0832,228.74,228.66,16.41783527]
[1733119380527,17.0832,228.74,228.62,0.87230636]
[1733119380715,17.0832,228.74,228.65,16.41783527]
[1733119380918,17.0832,228.74,228.65,23.776884]
[1733119382413,20.0,228.71,228.62,23.776884]
[1733119382607,20.0,228.71,228.61,23.776884]
[1733119382812,20.0,228.71,228.61,40.19471927]
[1733119384065,20.0,228.71,228.63,23.776884]
[1733119384564,20.0,228.71,228.63,40.19471927]
[1733119385930,17.0832,228.74,228.65,16.41783527]
[1733119386433,17.0832,228.74,228.64,16.41783527]
[1733119386820,17.0832,228.74,228.65,23.776884]
[1733119387024,20.0,228.71,228.63,23.776884]
[1733119387219,20.0,228.71,228.61,16.41783527]
[1733119387220,20.0,228.71,228.62,23.776884]
[1733119387425,20.0,228.71,228.61,23.776884]
[1733119387626,20.0,228.71,228.59,16.41783527]
[1733119387836,20.0,228.71,228.58,16.41783527]
[1733119387837,6.77,228.7,228.58,16.41783527]
[1733119388035,20.0,228.67,228.55,16.41783527]
[1733119388318,15.9752,228.66,228.53,16.41783527]
[1733119389236,20.0,228.63,228.48,0.87276314]
[1733119389420,20.0,228.63,228.5,16.41783527]
[1733119389738,20.0,228.59,228.48,16.41783527]
[1733119390420,20.0,228.59,228.45,0.87289299]
[1733119390421,20.0,228.55,228.45,16.41783527]
[1733119391037,6.3367,228.54,228.41,16.41783527]
[1733119391588,6.3367,228.54,228.39,16.41783527]
[1733119391735,20.0,228.51,228.39,16.41783527]
[1733119392745,20.0,228.51,228.4,16.41783527]
[1733119394539,20.0,228.51,228.42,16.41783527]
[1733119394743,20.0,228.51,228.43,16.41783527]
[1733119394948,20.0,228.51,228.44,16.41783527]
[1733119395242,20.0,228.51,228.45,16.41783527]
[1733119395443,20.0,228.51,228.46,16.41783527]
[1733119395651,6.3367,228.54,228.46,16.41783527]
[1733119395835,6.3367,228.54,228.47,16.41783527]
[1733119396635,6.3367,228.54,228.46,16.41783527]
[1733119398435,6.3367,228.54,228.45,16.41783527]
[1733119399027,6.3367,228.54,228.43,23.776884]
[1733119399231,20.0,228.51,228.4,16.41783527]
[1733119399535,20.0,228.51,228.34,0.87328767]
[1733119399839,20.0,228.51,228.4,16.41783527]
[1733119400047,20.0,228.51,228.43,16.41783527]
[1733119400433,20.0,228.51,228.42,16.41783527]
[1733119401342,20.0,228.51,228.41,16.41783527]
[1733119401536,20.0,228.51,228.42,23.776884]
[1733119402035,20.0,228.51,228.4,16.41783527]
[1733119403256,20.0,228.51,228.39,16.41783527]
[1733119403630,16.4653,228.5,228.39,16.41783527]
[1733119404950,16.4653,228.5,228.38,16.41783527]
[1733119405540,16.4653,228.5,228.37,16.41783527]
[1733119405744,16.4653,228.5,228.39,16.41783527]
[1733119407456,15.30733223,228.5,228.38,16.41783527]
[1733119407650,20.0,228.47,228.36,16.41783527]
[1733119407842,20.0,228.43,228.28,0.87346618]
[1733119408042,20.0,228.43,228.32,16.41783527]
[1733119408363,20.0,228.43,228.31,16.41783527]
[1733119408529,20.0,228.43,228.3,16.41783527]
[1733119409349,20.0,228.43,228.31,16.41783527]
[1733119409865,20.0,228.43,228.33,16.41783527]
[1733119410557,20.0,228.39,228.33,16.41783527]
[1733119410956,15.9906,228.42,228.35,16.41783527]
[1733119412655,15.9906,228.42,228.37,16.41783527]
[1733119413266,6.3569,228.46,228.38,16.41783527]
[1733119415243,6.3569,228.46,228.37,16.41783527]
[1733119417659,6.3569,228.46,228.33,0.99887821]
[1733119417660,20.0,228.43,228.33,16.41783527]
[1733119417961,20.0,228.43,228.32,16.41783527]
[1733119420074,20.0,228.43,228.28,0.8733824]
[1733119420075,20.0,228.43,228.33,16.41783527]
[1733119421938,20.0,228.43,228.32,16.41783527]
[1733119422339,20.0,228.43,228.33,16.41783527]
[1733119423768,20.0,228.43,228.34,10.53736529]
[1733119424651,20.0,228.43,228.3,0.12549]
[1733119424844,40.487184,228.42,228.23,0.5269661]
[1733119425038,20.0,228.35,228.23,1.40074189]
[1733119425241,6.8213,228.38,228.28,10.53736529]
[1733119425447,20.0,228.35,228.29,10.53736529]
[1733119426655,20.0,228.35,228.31,10.53736529]
[1733119427177,20.0,228.35,228.27,23.776884]
[1733119427372,20.0,228.35,228.3,10.53736529]
[1733119427853,6.8213,228.38,228.3,10.53736529]
[1733119428253,6.8213,228.38,228.29,10.53736529]
[1733119430651,6.8213,228.38,228.32,10.53736529]
[1733119431255,6.8213,228.38,228.31,10.53736529]
[1733119431869,6.8213,228.38,228.3,10.53736529]
[1733119432284,6.8213,228.38,228.27,34.31424929]
[1733119432452,6.8213,228.38,228.28,10.53736529]
[1733119433375,20.0,228.35,228.27,34.31424929]
[1733119433949,20.0,228.35,228.23,1.40068834]
[1733119434164,16.8199,228.34,228.23,1.40068834]
[1733119434371,16.8199,228.34,228.24,10.53736529]
[1733119435178,20.0,228.31,228.23,0.5269661]
[1733119435882,20.0,228.31,228.23,11.06433139]
[1733119436452,16.8199,228.34,228.23,11.06433139]
[1733119436651,20.0,228.31,228.24,10.53736529]
[1733119438675,20.0,228.31,228.23,11.06433139]
[1733119439279,6.2068,228.3,228.23,0.5269661]
[1733119441858,20.0,228.31,228.23,0.5269661]
[1733119447166,20.0,228.31,228.23,11.06433139]
[1733119447876,20.0,228.31,228.23,0.5269661]
[1733119448893,16.8199,228.34,228.24,11.41128041]
[1733119449890,16.8199,228.34,228.23,0.5269661]
[1733119452202,20.0,228.31,228.23,0.5269661]
[1733119458481,16.3648,228.42,228.24,10.53736529]
[1733119458684,0.61318918,228.41,228.24,10.53736529]
[1733119458887,0.61318918,228.41,228.24,11.41123229]
[1733119459186,0.61318918,228.41,228.23,24.3038501]
[1733119459507,0.61318918,228.41,228.23,35.71505255]
[1733119459807,20.0,228.39,228.23,35.71505255]
[1733119459999,20.0,228.37,228.23,35.71505255]
[1733119460601,20.0,228.37,228.23,25.17768726]
[1733119462603,20.0,228.39,228.23,35.71505255]
[1733119463302,0.61318918,228.41,228.25,10.53736529]
[1733119463598,0.61318918,228.41,228.25,11.41112962]
[1733119464109,18.67360334,228.42,228.28,23.776884]
[1733119464300,16.3648,228.42,228.29,0.87363414]
[1733119464597,20.0,228.39,228.26,16.5705]
[1733119464981,20.0,228.39,228.23,24.3038501]
[1733119467301,20.0,228.35,228.23,0.5269661]
[1733119467476,6.5849,228.34,228.23,0.5269661]
[1733119467683,20.0,228.31,228.23,0.5269661]
[1733119470201,36.0075,228.31,228.23,0.5269661]
[1733119471785,20.0,228.27,228.23,0.5269661]
[1733119472385,20.0,228.28,228.23,0.5269661]
[1733119476512,20.0,228.24,228.23,0.4655661]
[1733119476713,20.0,228.24,228.23,0.4501661]
[1733119478993,6.2691,228.27,228.23,0.4501661]
[1733119479913,16.0075,228.31,228.23,0.4501661]
[1733119480302,20.0,228.28,228.23,0.4501661]
[1733119489420,20.0,228.3,228.23,0.4501661]
[1733119490219,20.0,228.33,228.23,0.4501661]
[1733119491009,20.0,228.33,228.23,10.98753139]
[1733119491319,18.61815415,228.36,228.24,23.776884]
[1733119492715,20.0,228.33,228.24,23.776884]
[1733119493425,38.21642737,228.42,228.26,23.776884]